Cogmind - Beta 17 @@@ ROGUE MODE // 2026.07.27 @ 06:01:06 Player: nnnnsk Result: Destroyed by 2N-RD1(R) with Subdweller Machine Gun Performance ------------- Evolutions (0) 0 Regions Visited (2) 400 Robots Destroyed (28) 140 Value Destroyed (690) 690 Prototype IDs (14) 280 Alien Tech Used (0) 0 Bonus (0) 0 TOTAL SCORE: 1510 Bonus ------- None Cogmind --------- Core Integrity 0/250 Matter 290/300 Energy 100/100 System Corruption 0% Temperature Cool (0) Movement Rolling (120) Ox1 Location -10/Subcaves Parts ------- > --- POWER (1) -------- (None) > --- PROPULSION (2) --- Light Treads Subdweller Monowheel > --- UTILITY (2) ------ Large Storage Unit Makeshift Thermal Plating > --- WEAPON (2) ------- Battle Rifle Subdweller Machine Gun > --- INVENTORY (15) --- Ion Engine Subdweller Monowheel Heat Sink Medium Storage Unit High-capacity Battery (250) Structural Scanner Propulsion Shielding Scrap Shield Hacking Suite Subdweller Machine Gun Subdweller Machine Gun Grenade Launcher Grenade Launcher Makeshift Axe Peak State ------------ > --- POWER ------------ Ion Engine > --- PROPULSION ------- Light Treads Subdweller Monowheel > --- UTILITY ---------- Large Storage Unit Makeshift Thermal Plating > --- WEAPON ----------- Battle Rifle Subdweller Machine Gun > --- INVENTORY -------- Ion Engine Heat Sink Medium Storage Unit High-capacity Battery Structural Scanner Propulsion Shielding Scrap Shield Hacking Suite Subdweller Machine Gun Grenade Launcher Grenade Launcher Makeshift Axe [Rating: 15] Favorites ----------- Power Ion Engine Engine Ion Engine Propulsion Light Treads Treads Light Treads Wheel Subdweller Monowheel Utility Large Storage Unit Device Improved Terrain Scanner Storage Large Storage Unit Protection Propulsion Shielding Weapon Medium Laser Energy Gun Medium Laser Ballistic Gun Battle Rifle Launcher Grenade Launcher Build | -11 -10 -10 ------- Run | Yrd Mat Sub Slots Evolved . | . . . Power . | . . . Propulsion . | . . . Utility . | . . . Weapon . | . . . Parts Attached 24 | 7 9 8 Power 2 | . 2 . Engine 2 | . 2 . Core . | . . . Reactor . | . . . Propulsion 4 | 2 1 1 Treads 3 | 2 1 . Leg . | . . . Wheel 1 | . . 1 Hover . | . . . Flight . | . . . Utility 8 | 2 3 3 Device 3 | 1 . 2 Storage 3 | 1 2 . Processor . | . . . Hackware . | . . . Protection 2 | . 1 1 Artifact . | . . . Weapon 10 | 3 3 4 Energy Gun 2 | 1 1 . Energy Cannon . | . . . Ballistic Gun 5 | 2 . 3 Ballistic Cannon . | . . . Launcher 3 | . 2 1 Special Weapon . | . . . Impact Weapon . | . . . Slashing Weapon . | . . . Piercing Weapon . | . . . Special Melee Weapon . | . . . Unidentified Prototypes . | . . . Parts Lost 6 | . 1 5 Power 2 | . 1 1 Propulsion 1 | . . 1 Utility 1 | . . 1 Weapon 2 | . . 2 Highest Loss Streak 2 | . 1 2 To Critical Strikes . | . . . Average Backups 11 | 4 10 13 Power 1 | 1 1 1 Propulsion 2 | 2 3 1 Utility 4 | . 2 7 Weapon 2 | . 2 3 Tool/Special . | . . . Unused Backups 23 | . 8 15 Power 4 | . 3 1 Propulsion 8 | . 5 3 Utility 5 | . . 5 Weapon 5 | . . 5 Tool/Special 1 | . . 1 Average Slot Usage (%) 98 | . 97 99 Engine 12 | . 11 14 Treads 26 | . 27 24 Wheel 1 | . . 3 Device 7 | . 13 2 Storage 14 | . 14 14 Protection 6 | . . 11 Energy Gun 6 | . 8 4 Ballistic Gun 18 | . 15 21 Launcher 2 | . 3 2 Peak Build Rating 15 | 8 10 15 Average Rating 10 | 5 9 11 On Entrance 5 | . 8 8 Avg Prop Armor Cover (%) 8 | . . 8 Naked Turns . | . . . Heaviest Build 36 | 9 31 36 Greatest Support 40 | 40 40 40 Greatest Overweight (x) 1 | . . 1 Average Overweight (x) . | . . . Largest Inventory Capacity 15 | 8 15 15 Average Capacity 12 | 6 10 15 Most Carried 15 | 8 15 15 Average Carried 12 | 5 10 14 Final Capacity 15 | 8 15 15 Final Carried 15 | 8 15 15 Class Distribution -------------------- 100% | Mutant Dominant Class ---------------- Mutant | -10/Materials Mutant | -10/Subcaves Resources | -11 -10 -10 ----------- Run | Yrd Mat Sub Matter Collected 942 | 298 374 270 Remotely . | . . . Salvage Created 974 | 100 536 338 Parts 50 | 4 31 15 Haulers Intercepted 2 | . 2 . Recyclers Shooed . | . . . Parts Field Recycled . | . . . Retrieved Matter . | . . . Parts Self-Destructed 20 | . . 20 Prevented . | . . . Parts Restored . | . . . Kills | -11 -10 -10 ------- Run | Yrd Mat Sub Combat Hostiles Destroyed 19 | . 10 9 Guns 16 | . 10 6 AOE 3 | . . 3 Classes Destroyed 9 | 2 6 1 Builder 1 | . 1 . Tunneler 1 | 1 . . Hauler 2 | . 2 . Recycler 1 | 1 . . Operator 2 | . 2 . Watcher 2 | . 2 . Swarmer 5 | . 3 2 Grunt 7 | . 7 . Subdweller 7 | . . 7 Best Kill Streak 3 | 2 3 2 Combat Bots Only 3 | . 3 2 Max Kills in Single Turn 2 | 1 2 1 Gunslinging 1 | . 1 . Exploded 1 | . . 1 Melee . | . . . Uniques/NPCs Destroyed . | . . . Combat | -11 -10 -10 -------- Run | Yrd Mat Sub Hostile Shots Fired 123 | . 67 56 Missed 36 | . 20 16 Hits 87 | . 47 40 Projectile 87 | . 47 40 AOE 4 | . . 4 Critical Strikes 2 | . 1 1 Damage Taken 1423 | . 514 909 Core 267 | . 55 212 Absorbed by Shields . | . . . Redirected to Shielding 54 | . . 54 Ignored by Resistances 9 | . . 9 Regen/Repaired (Parts) 66 | . 66 . Core Remaining (%) 100 | 100 . . Volleys Fired 104 | 7 64 33 Largest 2 | 2 2 2 Hottest 90 | 40 70 90 Shots Fired 202 | 14 124 64 Gun 195 | 14 120 61 Cannon . | . . . Launcher 7 | . 4 3 Special . | . . . Kinetic 159 | 14 99 46 Thermal 32 | . 21 11 Explosive 6 | . 4 2 Electromagnetic 5 | . . 5 Robot Hit Streak 24 | 4 8 24 Robot Miss Streak 7 | 2 7 4 Penetration Max . | . . . Secondary Targets 2 | . 2 . Max Gunslinging Chain 1 | . 1 . Shots Hit Robots 129 | 7 76 46 Core Hits 51 | 4 30 17 Critical Kills . | . . . Critical Parts Destroyed . | . . . Critical Strikes 3 | . 1 2 Burn 1 | . 1 . Destroy 1 | . . 1 Corrupt 1 | . . 1 Melee Attacks . | . . . Impact . | . . . Slashing . | . . . Piercing . | . . . Sneak Attacks . | . . . Combat Hostiles . | . . . Follow-up Attacks . | . . . Damage Inflicted 1849 | 72 912 865 Guns 1540 | 72 827 641 Cannons . | . . . Explosions 309 | . 85 224 Melee . | . . . Ramming . | . . . Kinetic 1258 | 72 652 534 Thermal 300 | . 175 125 Explosive 249 | . 85 164 Electromagnetic 42 | . . 42 Impact . | . . . Slashing . | . . . Piercing . | . . . Highest Corruption . | . . . Average Corruption . | . . . Corruption Purged . | . . . Corruption Blocked . | . . . Overload Shots . | . . . Overflow Damage . | . . . Projectiles . | . . . Explosions . | . . . Melee . | . . . Knockbacks . | . . . Impact . | . . . Kinetic . | . . . Secondary . | . . . Self-Inflicted Damage 28 | . . 28 Shots 2 | . . 2 Rammed . | . . . Targets Rammed . | . . . Kicked . | . . . Crushed . | . . . Highest Temperature 126 | . 126 . Average Temperature 34 | . 34 . Received Heat Transfer 393 | . 258 135 Siege Activations . | . . . Martial Activations . | . . . Shielding Activations . | . . . Robots Disrupted . | . . . Combat Hostiles . | . . . Robots Corrupted . | . . . Combat Hostiles . | . . . Parts Fried . | . . . Impact Corruptions . | . . . Robots Melted . | . . . Combat Hostiles . | . . . Parts Melted 4 | . 2 2 Heat Transferred 962 | . 592 370 Parts Sabotaged . | . . . Parts Stolen . | . . . Parts Stripped . | . . . Power Chain Reactions . | . . . Alert | -11 -10 -10 ------- Run | Yrd Mat Sub Maximum Alert Level . | . . . Low Security (%) 100 | 100 100 . Level 1 . | . . . Level 2 . | . . . Level 3 . | . . . Level 4 . | . . . Level 5 . | . . . High Security . | . . . Max Security . | . . . Peak Influence 90 | 5 90 . Initial . | . . . Average 19 | . 21 . Influence Increases 423 | 10 373 40 Destroy 0b10 Robot/C 240 | . 200 40 Destroy 0b10 Robot/NC 45 | 10 35 . Destroy Leader 58 | . 58 . Successful Hack 23 | . 23 . Disable Machine 15 | . 15 . Destroy Structure 27 | . 27 . Lose Combat Pursuer 15 | . 15 . Influence Decreases 423 | 10 320 93 Entered New Map 26 | . . 26 Time Decay 367 | 10 310 47 Lost Part 30 | . 10 20 Squads Dispatched 3 | . 3 . Investigation 1 | . 1 . Extermination . | . . . Reinforcement 2 | . 2 . Assault . | . . . Garrison . | . . . Intercept . | . . . Searches Triggered . | . . . Construction Impeded . | . . . Haulers Reinforced . | . . . Active Scanning Responses . | . . . Cargo Convoy Interrupts . | . . . Stealth | -11 -10 -10 --------- Run | Yrd Mat Sub Distress Signals 1 | . 1 . Communications Jammed . | . . . Distress Signals . | . . . Times Spotted 36 | . 22 14 Peak Tracking Total 4 | . 3 4 Tactical Retreats 1 | . 1 . Traps | -11 -10 -10 ------- Run | Yrd Mat Sub Traps Triggered 1 | . 1 . Indirectly . | . . . Trap Hack Attempts . | . . . Triggered . | . . . Disarmed . | . . . Reprogrammed . | . . . Reused . | . . . Traps Extracted . | . . . Installed . | . . . Triggered . | . . . Machines | -11 -10 -10 ---------- Run | Yrd Mat Sub Machines Disabled 1 | . 1 . Max in Single Turn 1 | . 1 . Machines Repaired . | . . . Machines Dismantled . | . . . Machines Sabotaged . | . . . Overloaded Fab Kills . | . . . Hacking | -11 -10 -10 --------- Run | Yrd Mat Sub Machines Accessed 7 | . 6 1 Terminals 5 | . 5 . Fabricators . | . . . Repair Stations 1 | . 1 . Recycling Units . | . . . Scanalyzers . | . . . Garrison Access . | . . . Total Hacks 23 | . 22 1 Successful 14 | . 13 1 Failed 9 | . 9 . Catastrophic . | . . . Database Lockouts . | . . . Manual 13 | . 13 . Terminals 20 | . 20 . Fabricators . | . . . Repair Stations 2 | . 2 . Recycling Units . | . . . Scanalyzers . | . . . Garrison Access . | . . . Terminal Hacks 4 | . 3 1 Terminal Index 1 | . 1 . Recall Investigation 1 | . 1 . Zone Layout 1 | . 1 . Proto ID Catalog 1 | . . 1 Fabricator Hacks . | . . . Repair Station Hacks 2 | . 2 . Scan Component 1 | . 1 . Repair 1 | . 1 . Recycling Unit Hacks . | . . . Scanalyzer . | . . . Garrison Access Hacks . | . . . Unauthorized Hacks 8 | . 8 . Terminals 8 | . 8 . Botnet 3 | . 3 . Skim 5 | . 5 . Fabricators . | . . . Repair Stations . | . . . Recycling Units . | . . . Scanalyzers . | . . . Garrison Access . | . . . Data Cores Recovered 1 | . 1 . Used . | . . . Hacking Detections 6 | . 6 . Full Trace Events . | . . . Feedback Events . | . . . Feedback Blocked . | . . . Robot Schematics Acquired . | . . . Robots Built . | . . . Authchips . | . . . Time . | . . . Total Robot Build Rating . | . . . Part Schematics Acquired . | . . . Parts Built . | . . . Authchips . | . . . Time . | . . . Total Part Build Rating . | . . . Part Studies Acquired . | . . . Parts Repaired 1 | . 1 . Time 26 | . 26 . Parts Recycled . | . . . Recycled Matter . | . . . Retrieved Matter . | . . . Retrieved Components . | . . . Parts Scanalyzed . | . . . Part Schematics Acquired . | . . . Parts Damaged . | . . . Bothacking | -11 -10 -10 ------------ Run | Yrd Mat Sub Used RIF Installer . | . . . Robots Hacked . | . . . Non-combat . | . . . Combat . | . . . Robot Hacks Applied . | . . . Relay Couplers Released . | . . . Fabnet Peak Effective % . | . . . Robots Rewired . | . . . Allies Hacked . | . . . Hacks Repelled . | . . . Allies | -11 -10 -10 -------- Run | Yrd Mat Sub Total Allies . | . . . Largest Group . | . . . Highest-Rated Group . | . . . Highest-Rated Ally . | . . . Total Orders . | . . . Ally Attacks . | . . . Total Damage . | . . . Kills . | . . . Allies Corrupted . | . . . Allies Melted . | . . . Intel | -11 -10 -10 ------- Run | Yrd Mat Sub Active Infowar (turns) 1384 | 40 1142 202 Optics 140 | . . 140 Terrain 1182 | 40 1142 . Structural 62 | . . 62 Robot Analysis Total . | . . . Derelict Logs Recovered 3 | . . 3 Drone Launches . | . . . Drone Recoveries . | . . . Exploration | -11 -10 -10 ------------- Run | Yrd Mat Sub Turns Passed 2636 | 133 1193 1310 Spaces Moved 1344 | 62 558 724 Core 4 | 4 . . Treads 1206 | 58 558 590 Legs . | . . . Wheels 134 | . . 134 Hover . | . . . Flight . | . . . Fastest Speed 50 | 50 160 120 Average Speed 158 | 152 160 157 Slowest Speed 240 | 160 160 240 Overloaded Moves . | . . . Propulsion Burnouts . | . . . Robots Hopped . | . . . Potential Cave-ins . | . . . Cave-ins Triggered . | . . . Exploration Rate (%) 41 | 4 75 46 Regions Visited 2 Branch Regions 1 Pre-discovered Areas 2 | . 1 1 Known Exits Taken 1 | . 1 . Unknown Exits Taken 1 | 1 . . Scrap Searched 5 | . . 5 Spaces Dug . | . . . Terrain Destroyed 48 | . 24 24 Melee . | . . . Projectile . | . . . AOE 48 | . 24 24 Terrain Rammed . | . . . Walls Destroyed . | . . . Machines Disabled . | . . . Actions | -11 -10 -10 --------- Run | Yrd Mat Sub Total 1662 | 84 744 834 Wait 126 | 1 81 44 Move 1342 | 61 557 724 Hop . | . . . Pick Up 34 | 8 17 9 Fast Attach 11 | 6 2 3 Attach 4 | . 1 3 Detach . | . . . Swap 19 | 1 10 8 Drop 22 | . 12 10 Fire 104 | 7 64 33 Melee . | . . . Ram . | . . . Kick . | . . . Crush . | . . . Escape Stasis . | . . . Rewire . | . . . Trap . | . . . Miscellaneous . | . . . Route ------- -11/Scrapyard -10/Materials (discovered 6 exits: Mat x3 / [*Min x2] / *Sub) -10/Subcaves History --------- Turn | Location | Event 11 | -11/Scrapyard | Discovered new exit (range 15) 134 | -11/Scrapyard | Entered Materials 321 | -10/Materials | Build established: Mutant 478 | -10/Materials | Discovered new exit (range 16) 732 | -10/Materials | Discovered new exit (range 12) 1001 | -10/Materials | Identified exit to Materials 1001 | -10/Materials | Identified exit to Subcaves 1029 | -10/Materials | Loaded intel: 9 trap records 1047 | -10/Materials | Learned location of Mines (-9) 1055 | -10/Materials | Learned Storage stockpile data 1056 | -10/Materials | Learned Storage non-interactive machine intel 1077 | -10/Materials | Learned Materials stockpile data 1101 | -10/Materials | Learned Storage trap positions 1154 | -10/Materials | Repaired Lgt. Treads 1327 | -10/Materials | Entered Subcaves 1328 | -10/Subcaves | Approached by a straggling Scientist 1375 | -10/Subcaves | Core integrity fell below 50% 1410 | -10/Subcaves | Learned 2 Materials zone layouts 1411 | -10/Subcaves | A swath of the cavern ceiling suddenly collapsed 1715 | -10/Subcaves | Shifting Twisted Machinery released Mak. Axe 2195 | -10/Subcaves | Visited 4L-MR0's lab 2355 | -10/Subcaves | Learned location of Zion (-7) 2450 | -10/Subcaves | Core integrity fell below 20% 2620 | -10/Subcaves | Ambushed by Subdwellers from Twisted Machinery 2637 | -10/Subcaves | Destroyed by 2N-RD1(R) with Subdweller Machine Gun Last Messages --------------- 02304_ Lgt. Treads destroyed. 02313_ 27-ZYP(R) suffers critical hit (Destroy). 02316_ 27-ZYP(R) destroyed. 02328_ Acquired 50 matter. 02332_ Acquired 4 matter. 02335_ Acquired 6 matter. 02338_ Acquired Sub. Monowheel. 02340_ Acquired Sub. Machine Gun. 02355_ Acquired derelict log, extracted data. World map updated: -7/Zion. 02450_ Sub. Monowheel melted. 02450_ GE-LUF(R) destroyed. 02455_ Acquired 15 matter. 02468_ 6E-YV5(R) destroyed. 02485_ Acquired 15 matter. 02495_ Dropped Sub. Machine Gun. 02496_ Acquired 10 matter. 02620_ L0-WV5(R) emerges from the Twisted Machinery. 02633_ Ion Engine destroyed. Map ----- +----------------------------------------------------+ | ?????????????????????????????????????????????????? | | ?????????????????????????????????????????????????? | | ?????????????????????????????????????????????????? | | ?????????????????????????????????????????????????? | | ?????????????????????????????????????????????????? | | ?????????????????????????????????????????????????? | | ?????????????????????????????????????????????????? | | ?????????????????????????????????????????????????? | | ?????????????????????????????????????????????????? | | ?????????????????????????????????????????????????? | | ?????????????????????????????????????????????????? | | ?????????????????????????????????????????????????? | | ?????????????????????????????????????????????????? | | ?????????????????????????????????????????????????? | | ?????????????????????????????????????????????????? | | ?????????????????????????????????????????????????? | | ?????????????????????????????????????????????????? | | ?????????????????????????????????????????????????? | | ????????????????????# ?#??????#""???#????????????? | | ????????????????????# #???##""??? ##???????????? | | ????????????????????# "" ### " ?? ????????????? | | ????????????????????# """""""" #? ?????????????? | | ????????????????????? """"" ## #??????????????? | | ?????????????????????? ##" ???????????????? | | ???????????????????????#"""# ????????????????? | | ????????????????????????#@## #?????????????????? | | ????????????????????????#R## #?????????????????? | | ????????????????????????# ##????????????????? | | ????????????????????????# #????????????????? | | ??????????????????????### #????????????????? | | ??????????????? ???## ##???????????????? | | ?????????????? ???# ##??????????????? | | ?????????????? ??# #??????????????? | | ????????????? ??### ## ##?????????????? | | ####??###????? ????######### ##????????????? | | # #### #?????? #????????????## ###??????????? | | #??????# ###?####????### ##?????????? | | ##?????# ###" ????## #?????????? | | # ###??## ## ##???# ##?????????? | | ###### # #??# # ##### #####??????????? | | #??# ##?# # "## #??????????????? | | ??## ### # ## ##??????????????? | | ??# " " #???????????????? | | ?# ##???????????????? | | ?# ### #????????????????? | | ?## ##?# #????????????????? | | ??######?# ### ## ##????????????????? | | ?????????# ####?## ### ##?????????????????? | | ?????????####?????# ##?####??????????????????? | | ??????????????????#######????????????????????????? | +----------------------------------------------------+ Best States ------------- Heat Dissipation 25 Energy Generation 10 Energy Capacity 250 Matter Stores 300 Matter Capacity 300 Sight Range 21 Terrain Scan Range 16 Terrain Scan Density 10 Armor Coverage 100 Resistance: TH 10 Propulsion Shielding 33 Evasion (%) 40 Recoil Reduction 2 Item Schematics ----------------- None Robot Schematics ------------------ None Fabricated ------------ Nothing Repaired ---------- Lgt. Treads | 52% | -10/Materials Studied --------- None Alien Tech Used ----------------- None Achievements -------------- None Challenges ------------ None Game ------ Seed AlertLaunchReplicator Manual? 0 Play Time 00:24:06 Cumulative 146.9 hours Start 2026.07.26 @ 20:35:49 End 2026.07.27 @ 06:01:06 Sessions 3 Manual Loads 0 Difficulty Rogue Special Mode None Game No. 132 Rogue 125 Adventurer 0 Explorer 7 Win Type - Total 1 Types 1/0/0/0/0/0/0/0/0/0 Lore% 37 Gallery% 49 Achievement% 39 Wizard Run 0 Options --------- Layout 1 ASCII 0 Keyboard 1 Movement Numpad Keybinds 0 Fullscreen 2 Font 32/SmallcapsGlow Map View 50x35 Zoom Use 0% Tactical HUD 1 Map Filters NONE Filters NONE Steam 1 RUN: 8486bd57-2eb6-4f73-841d-623aad207a71